bitfinex/quotes_SOLUSD_20250704
["timestamp","ask_amount","ask_price","bid_price","bid_amount"]
[1751642046474,25.41516176,147.81,147.78,0.1]
[1751642046996,32.81304142,147.81,147.78,0.1]
[1751642047303,53.57162852,147.79,147.78,0.1]
[1751642047774,60.33798618,147.79,147.78,0.1]
[1751642051577,46.17374886,147.79,147.78,0.1]
[1751642051984,18.64964886,147.81,147.78,7.49787966]
[1751642052283,32.81251296,147.82,147.78,0.1]
[1751642052676,26.0,147.79,147.78,0.1]
[1751642056587,25.41479083,147.82,147.78,7.49787966]
[1751642056787,18.64964886,147.82,147.79,7.39787966]
[1751642057186,18.64964886,147.82,147.78,0.1]
[1751642057491,25.41498415,147.82,147.78,7.49787966]
[1751642058493,18.64964886,147.82,147.79,7.39787966]
[1751642059114,25.41473898,147.82,147.79,7.39787966]
[1751642059812,32.81261864,147.82,147.78,0.1]
[1751642060016,32.81261864,147.82,147.78,7.49787966]
[1751642060199,32.81261864,147.82,147.78,0.1]
[1751642060506,26.04752852,147.8,147.78,0.1]
[1751642061017,7.39787966,147.79,147.78,0.1]
[1751642061318,26.04752852,147.8,147.78,0.1]
[1751642061698,32.81364577,147.8,147.78,0.1]
[1751642062303,18.64964886,147.8,147.78,7.49787966]
[1751642063390,18.64964886,147.8,147.78,0.1]
[1751642064893,18.64964886,147.8,147.78,7.49787966]
[1751642065097,18.64964886,147.8,147.78,0.1]
[1751642065303,18.64964886,147.8,147.78,7.49787966]
[1751642067821,18.64964886,147.82,147.79,7.39787966]
[1751642068829,18.64964886,147.82,147.8,7.39787966]
[1751642069127,7.44082477,147.84,147.81,7.39787966]
[1751642069128,18.64964886,147.84,147.81,7.39787966]
[1751642069297,18.64964886,147.8,147.78,0.1]
[1751642069502,19.32619307,147.8,147.78,0.1]
[1751642069710,26.72407273,147.8,147.78,0.1]
[1751642070201,19.32619307,147.8,147.78,0.1]
[1751642071730,26.09244636,147.8,147.78,0.1]
[1751642072727,18.64964886,147.8,147.78,0.1]
[1751642073309,7.39787966,147.79,147.78,0.1]
[1751642073637,33.49043039,147.79,147.78,0.1]
[1751642073942,25.41600652,147.79,147.78,0.1]
[1751642074303,32.81388618,147.79,147.78,0.1]
[1751642075328,25.41600652,147.79,147.78,0.1]
[1751642076029,32.81388618,147.79,147.78,0.1]
[1751642076535,25.41600652,147.79,147.78,0.1]
[1751642077541,25.41600652,147.79,147.78,0.1]
[1751642078042,32.81388618,147.79,147.78,0.1]
[1751642079037,18.64964886,147.79,147.78,0.1]
[1751642079415,25.41600652,147.79,147.78,0.1]
[1751642080441,32.81388618,147.79,147.78,0.1]
[1751642080638,25.41600652,147.79,147.78,0.1]
[1751642081310,18.64964886,147.79,147.78,0.1]
[1751642082548,25.41600652,147.79,147.78,0.1]
[1751642085549,30.40403182,147.79,147.78,0.1]
[1751642085714,37.80191148,147.79,147.78,0.1]
[1751642086350,30.40403182,147.79,147.78,0.1]
[1751642088248,37.80191148,147.79,147.78,0.1]
[1751642090013,30.40403182,147.79,147.78,0.1]
[1751642090213,37.80191148,147.79,147.78,0.1]
[1751642091418,30.40403182,147.79,147.78,0.1]
[1751642091735,37.80191148,147.79,147.78,0.1]
[1751642092527,30.40403182,147.79,147.78,0.1]
[1751642092739,37.80191148,147.79,147.78,0.1]
[1751642093737,37.80287771,147.79,147.78,0.1]
[1751642097070,18.64964886,147.78,147.76,1.3970447]
[1751642097349,31.71306426,147.77,147.76,1.3970447]
[1751642097652,24.3151846,147.77,147.76,1.3970447]
[1751642097949,19.32619307,147.77,147.76,1.3970447]
[1751642098751,31.71041702,147.77,147.76,1.3970447]
[1751642098953,26.72407273,147.77,147.76,1.3970447]
[1751642099154,33.49134619,147.77,147.76,1.3970447]
[1751642099449,38.47727975,147.77,147.76,1.3970447]
[1751642099948,33.49134619,147.77,147.76,1.3970447]
[1751642100338,26.09346653,147.77,147.76,1.3970447]
[1751642100539,25.41692232,147.77,147.76,1.3970447]
[1751642101034,32.81480198,147.77,147.76,1.3970447]
[1751642101235,18.64964886,147.76,147.74,0.1]
[1751642101440,7.39787966,147.74,147.73,0.1]
[1751642102642,5.66303499,147.75,147.73,0.1]
[1751642102841,18.64964886,147.74,147.73,0.1]
[1751642103045,31.71028225,147.74,147.73,0.1]
[1751642103356,38.47892987,147.74,147.73,0.1]
[1751642103561,33.49272035,147.74,147.73,0.1]
[1751642103858,38.47798889,147.74,147.64,65.69787966]
[1751642104067,18.64964886,147.69,147.66,7.39787966]
[1751642104361,18.64964886,147.67,147.62,1.6595]
[1751642104656,19.32619307,147.69,147.64,7.39787966]
[1751642104657,7.39787966,147.69,147.64,7.39787966]
[1751642104839,7.39787966,147.69,147.65,7.39787966]
[1751642105047,18.64964886,147.67,147.64,7.39787966]
[1751642105361,26.04752852,147.65,147.6,65.39532319]
[1751642105530,18.64964886,147.65,147.61,7.39787966]
[1751642105736,18.64964886,147.65,147.62,7.39787966]
[1751642105950,18.64964886,147.66,147.62,7.39787966]
[1751642106152,7.39787966,147.65,147.6,65.39532319]
[1751642106340,7.39787966,147.61,147.53,5.06479779]
[1751642106639,18.64964886,147.61,147.53,11.84273358]
[1751642106846,18.64964886,147.61,147.53,28.78843953]
[1751642107160,18.64964886,147.62,147.58,7.39787966]
[1751642107364,26.04752852,147.62,147.58,7.39787966]
[1751642107539,32.82172181,147.62,147.58,7.39787966]
[1751642108060,18.64964886,147.64,147.6,7.39787966]
[1751642108367,26.04752852,147.64,147.59,7.39787966]
[1751642109172,18.64964886,147.62,147.58,0.1]
[1751642109330,25.42395137,147.62,147.58,7.49787966]
[1751642109534,32.82183103,147.62,147.58,0.1]
[1751642109734,0.67654421,147.64,147.59,7.39787966]
[1751642109950,0.67654421,147.64,147.6,7.39787966]
[1751642110358,19.32619307,147.65,147.58,6.87582444]
[1751642110544,18.64964886,147.65,147.62,7.39787966]
[1751642111453,18.64964886,147.66,147.62,7.39787966]
[1751642111658,0.67654421,147.69,147.65,7.39787966]
[1751642111960,18.64964886,147.7,147.66,7.39787966]
[1751642112262,18.64964886,147.71,147.63,7.39787966]
[1751642112450,52.04752852,147.71,147.67,7.39787966]
[1751642112646,8.07442387,147.7,147.65,7.39787966]
[1751642112856,7.39787966,147.69,147.65,7.39787966]
[1751642113161,26.04752852,147.67,147.61,6.77450299]
[1751642113356,26.04752852,147.67,147.63,7.39787966]
[1751642113660,32.81946041,147.67,147.63,7.39787966]
[1751642113966,32.81946041,147.67,147.62,7.39787966]
[1751642114542,32.81946041,147.67,147.63,7.39787966]
[1751642114742,7.39787966,147.66,147.62,7.39787966]
[1751642114943,7.39787966,147.66,147.6,1.5581]
[1751642114944,18.64964886,147.65,147.6,7.39787966]
[1751642115149,18.64964886,147.63,147.6,7.39787966]
[1751642116448,18.64964886,147.63,147.61,7.39787966]
[1751642116648,18.64964886,147.65,147.62,7.39787966]
[1751642116853,18.64964886,147.65,147.63,7.39787966]
[1751642117164,18.64964886,147.66,147.64,7.39787966]
[1751642117543,18.64964886,147.67,147.64,7.39787966]
[1751642117770,18.64964886,147.67,147.65,7.39787966]
[1751642118064,10.09984826,147.7,147.65,7.39787966]
[1751642118065,18.64964886,147.68,147.66,7.39787966]
[1751642118661,18.64964886,147.69,147.65,14.17060261]
[1751642118859,18.64964886,147.69,147.66,7.39787966]
[1751642119842,18.64964886,147.69,147.66,12.72338238]
[1751642119843,25.42081116,147.69,147.66,12.72338238]
[1751642120056,38.14419354,147.69,147.65,12.72338238]
[1751642120764,18.64964886,147.69,147.67,12.72338238]
[1751642120950,18.64964886,147.71,147.68,12.72338238]
[1751642121152,31.37303124,147.71,147.63,23.70775419]
[1751642121355,12.72338238,147.7,147.66,12.72338238]
[1751642121556,13.39992659,147.69,147.65,12.72338238]
[1751642121756,13.39992659,147.69,147.63,6.77352673]
[1751642121954,18.64964886,147.69,147.66,12.72338238]
[1751642122371,7.44691411,147.71,147.67,12.72338238]
[1751642122565,18.64964886,147.7,147.67,12.72338238]
[1751642123065,12.72338238,147.7,147.66,12.72338238]
[1751642124973,12.72338238,147.7,147.66,19.49557864]
[1751642125175,13.39992659,147.71,147.67,12.72338238]
[1751642125359,20.16998119,147.71,147.66,6.77219626]
[1751642125563,18.64964886,147.7,147.67,12.72338238]
[1751642126161,20.16998119,147.71,147.66,19.49557864]
[1751642126679,12.72338238,147.7,147.66,19.49557864]
[1751642127180,7.44668748,147.71,147.66,19.49557864]
[1751642127391,12.72338238,147.7,147.66,19.49557864]
[1751642128881,12.72338238,147.71,147.67,12.72338238]
[1751642129295,27.5366,147.73,147.69,12.72338238]
[1751642129462,18.64964886,147.73,147.69,12.72338238]
[1751642129663,31.37303124,147.75,147.71,12.72338238]
[1751642129994,0.87654421,147.76,147.68,26.0]
[1751642130290,0.2,147.76,147.73,12.72338238]
[1751642131359,0.2,147.76,147.73,19.49238603]
[1751642131560,12.92338238,147.76,147.72,19.49275885]
[1751642132093,0.2,147.76,147.73,12.72338238]
[1751642132456,0.2,147.76,147.72,6.76937647]
[1751642132689,0.2,147.76,147.73,12.72338238]
[1751642133091,0.2,147.76,147.74,12.72338238]
[1751642133390,0.2,147.76,147.74,65.06860322]
[1751642133560,0.2,147.76,147.75,12.72338238]
[1751642134185,0.2,147.76,147.74,58.3]
[1751642134377,0.2,147.76,147.75,12.72338238]
[1751642135205,0.2,147.76,147.72,6.76944166]
[1751642135384,0.2,147.76,147.74,12.72338238]
[1751642136683,0.2,147.76,147.75,12.72338238]
[1751642137587,0.2,147.76,147.75,19.49157188]
[1751642139000,0.2,147.76,147.75,77.79157188]
[1751642140105,0.2,147.76,147.74,12.72338238]
[1751642140408,0.2,147.76,147.72,65.06939515]
[1751642140608,0.2,147.76,147.74,12.72338238]
[1751642141005,19.69121033,147.76,147.71,71.02338238]
[1751642141308,19.69121033,147.76,147.71,58.3]
[1751642141507,19.69121033,147.76,147.71,71.02338238]
[1751642141701,19.69121033,147.76,147.71,77.7933278]
[1751642141893,14.3838298,147.76,147.72,7.41600185]
[1751642142091,6.96782795,147.76,147.72,7.41600185]
[1751642142697,14.3838298,147.76,147.72,7.41600185]
[1751642143717,7.41600185,147.73,147.67,6.4166]
[1751642143889,20.91529307,147.75,147.7,7.41600185]
[1751642143890,7.41600185,147.74,147.7,7.41600185]
[1751642144090,7.41600185,147.74,147.69,7.41600185]
[1751642144296,7.41600185,147.73,147.69,7.41600185]
[1751642145026,28.33129492,147.75,147.71,7.41600185]
[1751642145615,35.09970258,147.75,147.71,7.41600185]
[1751642146005,7.41600185,147.74,147.7,7.41600185]
[1751642146738,7.41600185,147.73,147.67,71.48831486]
[1751642146898,7.41600185,147.73,147.69,7.41600185]
[1751642147811,6.76956404,147.72,147.69,7.41600185]
[1751642148405,14.18526942,147.73,147.68,6.77135074]
[1751642148711,14.18526942,147.73,147.69,7.41600185]
[1751642149012,6.76926757,147.73,147.7,7.41600185]
[1751642149209,14.18481686,147.74,147.7,7.41600185]
[1751642149409,15.77349955,147.75,147.71,7.41600185]
[1751642150698,1.5891,147.75,147.72,7.41600185]
[1751642151031,0.2,147.76,147.74,33.41600185]
[1751642151239,0.2,147.76,147.75,7.41600185]
[1751642151407,0.2,147.76,147.75,65.71600185]
[1751642152524,0.2,147.76,147.75,65.0681895]
[1751642152702,0.2,147.76,147.75,72.48419135]
[1751642152909,0.2,147.76,147.72,6.76956404]
[1751642153299,0.2,147.76,147.71,59.8875]
[1751642153300,6.96777623,147.76,147.73,7.41600185]
[1751642153495,0.2,147.76,147.74,7.41600185]
[1751642154922,0.2,147.76,147.75,7.41600185]
[1751642155307,0.2,147.76,147.74,7.41600185]
[1751642155621,18.64964886,147.75,147.71,65.71600185]
[1751642155795,18.64964886,147.75,147.71,7.41600185]
[1751642156001,19.32619307,147.75,147.71,7.41600185]
[1751642156396,7.41600185,147.74,147.69,7.41600185]
[1751642156811,14.18504413,147.74,147.7,7.41600185]
[1751642157211,14.18504413,147.74,147.68,65.0713403]
[1751642157410,14.18504413,147.74,147.7,7.41600185]
[1751642157620,14.18504413,147.74,147.68,65.0713403]
[1751642157919,14.18504413,147.74,147.7,7.41600185]
[1751642160004,7.41600185,147.72,147.67,14.83600185]
[1751642160519,18.64964886,147.72,147.68,7.41600185]
[1751642161023,18.64964886,147.72,147.67,14.19185011]
[1751642161024,8.09254606,147.73,147.69,7.41600185]
[1751642161228,6.76828922,147.75,147.71,7.41600185]
[1751642161517,0.2,147.76,147.74,7.41600185]
[1751642161821,0.2,147.76,147.75,7.41600185]
[1751642162213,0.2,147.76,147.75,14.18419135]
[1751642163707,0.2,147.76,147.75,7.41600185]
[1751642163905,0.2,147.76,147.73,6.7691058]
[1751642164222,0.2,147.76,147.74,12.70609187]
[1751642164933,6.96782055,147.76,147.73,12.70609187]
[1751642165240,6.96782055,147.76,147.72,12.70609187]
[1751642165431,6.96782055,147.76,147.73,12.70609187]
[1751642165618,6.96782055,147.76,147.71,6.7699166]
[1751642165934,6.96782055,147.76,147.73,12.70609187]
[1751642167918,6.96782055,147.76,147.72,12.70609187]
[1751642168441,6.96782055,147.76,147.72,71.00609187]
[1751642169008,6.96782055,147.76,147.73,12.70609187]
[1751642169409,0.2,147.76,147.75,19.47428137]
[1751642169839,0.2,147.76,147.75,77.77428137]
[1751642174216,0.2,147.81,147.76,25.13914886]
[1751642174416,0.2,147.81,147.8,12.70609187]
[1751642174942,0.2,147.81,147.79,12.70609187]
[1751642175617,0.2,147.81,147.75,100.2281895]
[1751642175618,12.90609187,147.81,147.75,100.2281895]
[1751642175819,12.90609187,147.81,147.77,12.70609187]
[1751642176032,19.67161568,147.81,147.77,12.70609187]
[1751642176746,0.2,147.81,147.79,12.70609187]
[1751642179349,0.2,147.81,147.79,19.47244544]
[1751642180229,0.2,147.81,147.8,12.70609187]
[1751642180424,0.2,147.81,147.8,19.47199173]
[1751642181626,0.2,147.81,147.8,77.77199173]
[1751642182462,0.2,147.81,147.8,112.91199173]
[1751642182931,0.2,147.81,147.8,131.56164059]
[1751642183737,0.2,147.81,147.8,100.20589986]
[1751642184051,0.2,147.81,147.8,112.91199173]
[1751642185738,0.2,147.81,147.8,107.60887197]
[1751642186230,0.2,147.81,147.8,49.30887197]
[1751642188053,0.2,147.81,147.8,107.60887197]
[1751642190332,0.2,147.81,147.8,134.28546195]
[1751642190535,0.2,147.81,147.8,133.60887197]
[1751642192533,0.2,147.81,147.77,33.40297211]
[1751642192743,0.2,147.81,147.78,7.40297211]
[1751642193339,14.36841423,147.81,147.76,7.40297211]
[1751642193558,7.40297211,147.79,147.75,129.21219236]
[1751642194674,14.16948993,147.79,147.75,121.80922025]
[1751642194869,7.40297211,147.78,147.75,121.80922025]
[1751642195279,7.40297211,147.77,147.75,121.80922025]
[1751642195466,7.40297211,147.78,147.75,121.80922025]
[1751642195849,12.70951239,147.78,147.75,121.80922025]
[1751642196587,7.44306203,147.79,147.75,121.80922025]
[1751642196779,12.70951239,147.78,147.75,121.80922025]
[1751642196984,6.76651782,147.79,147.75,134.51873264]
[1751642197167,6.76651782,147.79,147.76,12.70951239]
[1751642197369,19.47603021,147.79,147.75,134.51873264]
[1751642197677,12.70951239,147.78,147.75,121.80922025]
[1751642198383,12.70951239,147.77,147.75,121.80922025]
[1751642198682,20.99375288,147.76,147.73,58.3]
[1751642198887,1.5162,147.76,147.73,58.3]
[1751642199181,8.28396331,147.76,147.73,58.3]
[1751642200492,20.9934757,147.76,147.73,58.3]
[1751642204095,20.9934757,147.76,147.72,58.3]
[1751642204593,8.28396331,147.76,147.72,58.3]
[1751642204761,12.70951239,147.74,147.7,58.4]
[1751642205094,12.70951239,147.73,147.7,58.4]
[1751642205276,12.70951239,147.73,147.7,0.1]
[1751642205817,19.47881128,147.73,147.7,0.1]
[1751642206791,0.67654421,147.78,147.72,12.70951239]
[1751642207011,1.8538,147.81,147.77,12.70951239]
[1751642207299,1.8538,147.81,147.79,12.70951239]
[1751642207911,1.8538,147.81,147.77,35.08]
[1751642207912,22.00533107,147.81,147.77,35.08]
[1751642208206,22.00533107,147.81,147.75,12.70951239]
[1751642208207,31.35916125,147.8,147.75,12.70951239]
[1751642209487,13.3860566,147.79,147.75,12.70951239]
[1751642209681,6.76681553,147.78,147.75,12.70951239]
[1751642210292,6.76681553,147.78,147.74,47.78951239]
[1751642210487,31.35916125,147.77,147.72,47.76951239]
[1751642210993,31.35916125,147.77,147.72,12.70951239]
[1751642211396,25.41737717,147.77,147.73,12.70951239]
[1751642211580,38.12688956,147.77,147.73,12.70951239]
[1751642212793,38.12688956,147.77,147.71,35.06]
[1751642213001,12.70951239,147.76,147.72,12.70951239]
[1751642213882,19.47746898,147.76,147.72,12.70951239]
[1751642215693,6.76795659,147.76,147.72,71.00951239]
[1751642216080,19.47746898,147.76,147.72,58.3]
[1751642216269,31.35916125,147.75,147.7,106.14951239]
[1751642216474,31.35916125,147.75,147.7,71.10951239]
[1751642216671,32.03570546,147.75,147.7,71.10951239]
[1751642217000,14.29071239,147.74,147.7,58.4]
[1751642217292,14.29071239,147.74,147.7,71.10951239]
[1751642217867,6.7691058,147.73,147.7,58.4]
[1751642218097,19.47861819,147.73,147.7,58.4]
[1751642219697,12.70951239,147.72,147.7,58.4]
[1751642219896,7.44565001,147.73,147.7,58.4]
[1751642220102,12.70951239,147.72,147.7,58.4]
[1751642220298,6.7691058,147.73,147.7,58.4]
[1751642220474,19.47861819,147.73,147.7,58.4]
[1751642221084,12.70951239,147.72,147.7,58.4]
[1751642221578,12.70951239,147.72,147.7,0.1]
[1751642221895,6.7691058,147.73,147.7,0.1]
[1751642222093,38.12918359,147.71,147.7,0.1]
[1751642227407,38.12918359,147.71,147.7,1e-08]
[1751642227408,46.14258359,147.71,147.7,1e-08]
[1751642227572,44.64964886,147.67,147.64,0.1]
[1751642227774,12.70951239,147.65,147.64,0.1]
[1751642228613,38.1319347,147.65,147.64,0.1]
[1751642229022,18.64964886,147.65,147.64,0.1]
[1751642229212,26.0,147.67,147.64,0.1]
[1751642229383,19.48076343,147.69,147.64,12.80951239]
[1751642229713,38.70951239,147.69,147.64,6.87321206]
[1751642229900,33.42296408,147.69,147.65,7.42296408]
[1751642230088,26.0,147.69,147.65,7.42296408]
[1751642230285,33.42296408,147.69,147.65,7.42296408]
[1751642230810,33.42296408,147.69,147.65,14.19564832]
[1751642231305,26.0,147.69,147.65,14.19564832]
[1751642231520,53.58591294,147.71,147.67,7.42296408]
[1751642231717,46.16294886,147.71,147.67,7.42296408]
[1751642231883,12.72101762,147.72,147.68,12.72101762]
[1751642232087,6.76958367,147.72,147.68,12.72101762]
[1751642232506,18.64964886,147.72,147.68,12.72101762]
[1751642232703,45.4902756,147.73,147.68,12.72101762]
[1751642232891,46.16681981,147.73,147.68,12.72101762]
[1751642233087,12.72101762,147.72,147.67,12.72101762]
[1751642233291,12.72101762,147.71,147.66,12.72101762]
[1751642233700,18.64964886,147.72,147.68,12.72101762]
[1751642233899,31.37066648,147.72,147.68,12.72101762]
[1751642234513,12.72101762,147.72,147.68,12.72101762]
[1751642234910,14.1687879,147.74,147.7,12.72101762]
[1751642235206,20.12101762,147.74,147.7,12.72101762]
[1751642235391,26.88968675,147.74,147.7,12.72101762]
[1751642235592,26.88968675,147.74,147.66,23.70310171]
[1751642235900,19.48968675,147.74,147.7,12.72101762]
[1751642236101,12.72101762,147.73,147.66,23.70310171]
[1751642236284,12.72101762,147.73,147.69,12.72101762]
[1751642237012,19.48968675,147.74,147.69,19.49185006]
[1751642237687,19.48968675,147.74,147.69,12.72101762]
[1751642237884,12.72101762,147.73,147.69,12.72101762]
[1751642238116,12.72101762,147.72,147.67,12.72101762]
[1751642238411,12.72101762,147.71,147.67,12.72101762]
[1751642239111,12.72101762,147.71,147.66,12.72101762]
[1751642239112,19.49134719,147.71,147.66,12.72101762]
[1751642239606,19.49134719,147.71,147.67,12.72101762]
[1751642239813,6.77032957,147.71,147.65,6.77277345]
[1751642240001,6.76973555,147.72,147.67,12.72101762]
[1751642240312,7.44585638,147.73,147.68,12.72101762]
[1751642240513,5.65767163,147.74,147.69,12.72101762]
[1751642240831,12.72101762,147.73,147.69,12.72101762]
[1751642241625,19.49017737,147.73,147.65,16.93193362]
[1751642241798,19.49017737,147.73,147.69,12.72101762]
[1751642242116,12.72101762,147.73,147.69,12.72101762]
[1751642242322,19.48975513,147.74,147.69,12.72101762]
[1751642242623,12.72101762,147.74,147.69,12.72101762]
[1751642242801,19.48974083,147.74,147.69,12.72101762]
[1751642243520,19.48974083,147.74,147.69,19.49190054]
[1751642244324,47.74244828,147.75,147.7,12.72101762]
[1751642244631,1.5765,147.75,147.72,12.72101762]
[1751642244810,12.72101762,147.76,147.72,12.72101762]
[1751642246038,19.48887419,147.76,147.72,12.72101762]
[1751642246239,12.72101762,147.75,147.71,19.49067393]
[1751642247334,12.72101762,147.76,147.72,12.72101762]
[1751642247946,26.67654421,147.77,147.72,12.72101762]
[1751642248107,26.0,147.77,147.73,12.72101762]
[1751642248311,26.0,147.77,147.74,12.72101762]
[1751642248514,38.72101762,147.77,147.73,12.72101762]
[1751642248844,45.48834167,147.77,147.73,12.72101762]
[1751642249144,12.72101762,147.76,147.7,65.0704807]
[1751642249340,12.72101762,147.76,147.72,12.72101762]
[1751642249526,19.4888461,147.76,147.72,12.72101762]
[1751642250217,19.4888461,147.76,147.72,19.49051447]
[1751642250417,12.72101762,147.76,147.72,19.49051447]
[1751642250645,12.72101762,147.77,147.73,12.72101762]
[1751642250807,46.10101762,147.78,147.74,12.72101762]
[1751642251309,33.38,147.78,147.75,12.72101762]
[1751642251516,33.38,147.78,147.75,19.48901912]
[1751642251918,33.38,147.78,147.75,14.18084248]
[1751642252133,1.5974,147.79,147.76,7.41284098]
[1751642252648,33.41284098,147.8,147.76,7.41284098]
[1751642252813,26.0,147.8,147.76,7.41284098]
[1751642253018,40.17882341,147.8,147.76,7.41284098]
[1751642254143,32.76598243,147.8,147.76,7.41284098]
[1751642254442,7.41284098,147.79,147.75,14.18084248]
[1751642255246,7.41284098,147.78,147.73,6.76896885]
[1751642255413,7.41284098,147.77,147.73,7.41284098]
[1751642255819,6.76743151,147.77,147.72,65.06937162]
[1751642256014,7.41284098,147.76,147.72,58.3]
[1751642256239,7.41284098,147.76,147.72,65.71284098]
[1751642256723,7.41284098,147.75,147.72,58.3]
[1751642256931,7.41284098,147.73,147.69,7.41284098]
[1751642257135,7.41284098,147.73,147.67,26.0]
[1751642257330,7.41284098,147.73,147.69,7.41284098]
[1751642257740,7.41284098,147.73,147.69,14.18375557]
[1751642257936,14.18199835,147.73,147.69,14.18375557]
[1751642258133,7.41284098,147.71,147.67,7.41284098]
[1751642258366,7.41284098,147.69,147.65,7.41284098]
[1751642258650,7.41284098,147.68,147.64,14.28590409]
[1751642258854,1.5513,147.7,147.64,0.1]
[1751642258855,7.41284098,147.67,147.64,0.1]
[1751642259026,7.41284098,147.68,147.64,0.1]
[1751642259734,14.18423859,147.68,147.64,0.1]
[1751642259937,14.8607828,147.68,147.64,0.1]
[1751642260317,14.8607828,147.68,147.64,7.51284098]
[1751642261627,7.41284098,147.68,147.64,7.51284098]
[1751642261949,12.72698153,147.68,147.64,12.82698153]
[1751642262546,26.09732121,147.69,147.64,12.82698153]
[1751642262744,12.72698153,147.68,147.64,19.60010836]
[1751642263949,12.72698153,147.68,147.64,12.82698153]
[1751642264261,19.49839194,147.68,147.64,12.82698153]
[1751642264630,57.37663039,147.65,147.64,0.1]
[1751642265941,65.66750384,147.65,147.64,0.1]
[1751642266358,52.94052231,147.65,147.64,0.1]
[1751642266537,27.5181,147.65,147.64,0.1]
[1751642267937,26.0,147.65,147.64,0.1]
[1751642269336,13.40352574,147.67,147.64,0.1]
[1751642269533,39.40352574,147.67,147.64,0.1]
[1751642270951,46.17542997,147.67,147.64,0.1]
[1751642271357,12.72698153,147.66,147.64,0.1]
[1751642271559,18.64964886,147.66,147.64,0.1]
[1751642271764,13.40352574,147.65,147.64,0.1]
[1751642272059,38.82594805,147.65,147.64,0.1]
[1751642272880,38.72698153,147.61,147.58,0.1]
[1751642273176,26.0,147.61,147.58,19.60281231]
[1751642273342,26.0,147.61,147.59,12.72698153]
[1751642273962,26.0,147.61,147.58,12.82698153]
[1751642274267,26.0,147.61,147.58,0.1]
[1751642274564,26.0,147.61,147.58,12.82698153]
[1751642275143,18.64964886,147.62,147.58,0.1]
[1751642275358,31.37663039,147.62,147.58,0.1]
[1751642275563,31.37663039,147.62,147.58,12.82698153]
[1751642275762,31.37663039,147.62,147.58,0.1]
[1751642276375,20.1781345,147.61,147.58,0.1]
[1751642276680,12.72698153,147.59,147.58,0.1]
[1751642277174,26.0,147.59,147.58,0.1]
[1751642277962,59.7120746,147.59,147.58,0.1]
[1751642278471,66.48760139,147.59,147.58,0.1]
[1751642278849,53.76061986,147.59,147.58,0.1]
[1751642279065,2.33544421,147.59,147.58,0.1]
[1751642279279,39.81105718,147.59,147.58,0.1]
[1751642279475,40.48760139,147.59,147.58,0.1]
[1751642279851,28.33544421,147.59,147.58,0.1]
[1751642280070,26.0,147.59,147.58,0.1]
[1751642280892,0.67654421,147.61,147.58,12.82698153]
[1751642281079,26.0,147.6,147.58,12.82698153]
[1751642281685,26.0,147.6,147.58,0.1]
[1751642282069,1.6545,147.63,147.59,12.72698153]
[1751642282379,1.6545,147.63,147.58,6.87594672]
[1751642282556,1.6545,147.63,147.6,12.72698153]
[1751642283073,32.0531746,147.62,147.58,12.82698153]
[1751642283277,12.72698153,147.61,147.58,0.1]
[1751642284186,19.50160881,147.61,147.58,0.1]
[1751642284484,32.0531746,147.6,147.58,0.1]
[1751642286077,38.82827259,147.6,147.58,0.1]
[1751642286584,12.72698153,147.59,147.58,0.1]
[1751642286770,26.10129106,147.6,147.58,0.1]
[1751642287097,12.72698153,147.59,147.58,0.1]
[1751642287297,31.37663039,147.59,147.58,0.1]
[1751642287656,18.64964886,147.59,147.58,0.1]
[1751642287872,12.72698153,147.59,147.58,0.1]
[1751642288272,31.37663039,147.59,147.58,0.1]
[1751642289477,18.64964886,147.59,147.58,0.1]
[1751642289682,31.37663039,147.59,147.58,0.1]
[1751642290067,25.42517565,147.59,147.58,0.1]
[1751642290267,38.15215718,147.59,147.58,0.1]
[1751642290457,25.42517565,147.59,147.58,0.1]
[1751642290788,19.50250832,147.59,147.58,0.1]
[1751642291389,38.15215718,147.59,147.58,0.1]
[1751642293984,0.67654421,147.6,147.58,0.1]
[1751642294189,7.45161305,147.6,147.58,0.1]
[1751642294762,0.67654421,147.6,147.58,0.1]
[1751642295588,7.45168618,147.6,147.58,0.1]
[1751642296198,20.17866771,147.6,147.58,0.1]
[1751642296691,26.0,147.61,147.58,12.82698153]
[1751642296861,38.15096569,147.62,147.58,19.60296629]
[1751642297185,19.50131683,147.62,147.58,0.1]
[1751642297968,19.50131683,147.62,147.58,12.82698153]
[1751642298174,6.7743353,147.62,147.58,12.82698153]